{"text_format":"1","workbook":"xlsx","n_sheets":8,"sheets":["使い方","ﾏｸﾛの設定有効化","交通費総括表","K1","交通費算出表","継続参加大会","交通費精算規定","コーチ昼食費"],"not_rendered":{"charts":0,"images":20,"macros":1,"external_links":0,"defined_names":4,"comments":1,"pivot_tables":0},"unopened":[],"bounds":{"document_bytes":16777216,"sheet_cells":100000,"rows_first":2000,"rows_last":500,"rows_between":2000,"halvings":0,"cell_chars":16384,"cell_head_chars":4096},"cells_cut":0,"cells_raw":0,"read":"whole","date_system":"1900"}

{"sheet":"使い方","index":0,"n_rows":242,"n_cols":11,"rows_kept":242,"cut":false,"hidden":false,"merged":[[0,1,0,5],[24,1,24,2],[2,1,2,2],[14,8,15,8],[14,9,15,9],[20,8,21,8],[20,9,21,9]]}
[null,"交通費明細書の使い方"]
[]
[null,"概要"]
[]
[]
[null,null,"０．「交通費算出表」にてガソリン単価を設定",null,null,null,null,null,"手入力","・・・・・","①会計さんより連絡を受けた「ガソリン単価」を手入力で設定する。(期毎に更新）"]
[]
[]
[null,null,"１．「交通費総括表」にて基本項目を設定",null,null,null,null,null,"手入力","・・・・・","①「コーチ名」、「チーム名」を手入力で設定する。(初回のみ）"]
[null,null,null,null,null,null,null,null,null,null,"②「期]、[期間」を手入力で設定する。"]
[null,null,null,null,null,null,null,null,null,null,"③「行先等共通事項」、「団費補助の有無」、「交通手段」を手入力で設定する。"]
[]
[null,null,"２．「交通費個人表」をコピーして作成",null,null,null,null,null,"手作業",null,"④「K1」シートをコピーしてコーチの人数分の個人表を作成する。(初回のみ）"]
[]
[null,null,"３．「交通費個人表」へ「交通費総括表」から基本項目を、",null,null,null,null,null,"マクロ","・・・・・","⑤総括表の「行先等共通項目」、「交通手段」をマクロで個人表にコピーする。"]
[null,null,"　　「交通費算出表」からガソリン代項目をコピー",null,null,null,null,null,null,null,"⑥交通費算出表の「ガソリン代項目(距離、燃費、単価）」をマクロで個人表にコピーする。"]
[]
[null,null,"４．「交通費個人表」にてガソリン代以外の交通費を設定",null,null,null,null,null,"手入力","・・・・・","⑦個人表へガソリン代以外の交通費（駐車場代、高速料金、電車、バス等）を手入力で設定する。"]
[]
[]
[null,null,"５．「交通費総括表」にて交通費と車の台数を合計し、",null,null,null,null,null,"マクロ","・・・・・","⑧マクロで個人表の交通費及び車の台数を合計して総括表に書き込む。"]
[null,null,"　　車2台分のガソリン代項目を取り込み後、",null,null,null,null,null,null,null,"⑨マクロで交通費算出表から車2台分の「ガソリン代項目距離、燃費、単価」を取り込む。"]
[null,null,"　　団費補助金額を計算",null,null,null,null,null,"関数","・・・・・","⑩関数により団費補助金額を計算する。"]
[]
[null,"詳細"]
[]
[null,"０．","「交通費算出表」にてガソリン単価を設定（手入力）"]
[null,null,"(1)","「交通費算出表」のセルE3に、会計さんより連絡を受けたガソリン単価を入れる。期毎に更新すること。"]
[]
[]
[]
[]
[]
[]
[]
[]
[null,"１．","「交通費総括表」にて基本項目を設定（手入力）"]
[null,"1.1","コーチ名の記入"]
[null,null,"(1)","「コーチ名」をセルH6～O6に左詰めで入れる。「コーチ名]の記入は初回のみ。"]
[null,null,null,"例）コーチが4人の場合はセルH6～K6"]
[]
[]
[]
[]
[]
[]
[]
[]
[]
[]
[null,null,null,"★セルH7～O7にある「K1」～「K8」は、交通費個人表のシート名を表す。"]
[null,null,null,"例）上記設定の場合、西尾コーチの交通費個人表は「K1」シートになります。"]
[]
[null,null,"(2)","コーチ名を記入していない不要な列は非表示にする。（列削除は絶対にしないでください！マクロが正しく動作しなくなります。）"]
[null,null,null,"例）コーチが4人の場合はL～O列を非表示にする。"]
[]
[]
[]
[]
[]
[]
[]
[]
[]
[]
[]
[]
[]
[]
[]
[]
[]
[]
[]
[]
[]
[]
[]
[]
[]
[]
[]
[]
[]
[]
[]
[null,"1.2","チーム名、期、期間、の記入"]
[null,null,"(1)","「チーム名」、「期」、「期間」を記入する。「チーム名]の記入は初回のみ。"]
[]
[]
[]
[]
[]
[]
[]
[]
[]
[]
[null,"1.3","行先等共通項目の記入"]
[null,null,"(1)","「日付」、「区分」、「行先名称」、「行先備考」、「団費補助有無」を記入する。"]
[null,null,"①","行先名称はドロップダウンリストを使って記入すること。（「交通費算出表」シート内D列の「会場」覧が出てきます。）"]
[null,null,"②","行先名称が「会場」覧に無い場合は、「交通費算出表」シートを開いて「会場」と「片道距離」を追加してください。"]
[null,null,null,"   （遠方より練習参加のコーチも会場欄に追加することで考慮できます。）"]
[null,null,"③","団費補助がある練習や試合には、団費補助有無欄に「有」を設定する。"]
[null,null,null,"　　　　　★団費補助が「有」となるのは以下の3種類。"]
[null,null,null,null,"・通常の練習"]
[null,null,null,null,"・神戸市または西地区で開催のリーグ戦・大会"]
[null,null,null,null,"・長年継続参加してきた大会　→　「継続参加大会」シートを参照"]
[]
[]
[]
[]
[]
[]
[]
[]
[]
[]
[]
[]
[]
[]
[]
[null,"1.4","各コーチの交通手段の記入"]
[null,null,"(1)","各コーチの交通手段を記入する。"]
[null,null,"①","交通手段の内、「車種A」、「車種B」、「ﾊﾞｲｸ」、「自転車」はドロップダウンリストを使って記入すること。"]
[null,null,null,"（手入力はマクロで判別できない恐れがあるためです。また、ﾀﾙｽﾎﾟへ自転車で行くと交通費が支払われます。）"]
[null,null,"②","交通費がかからない場合（車への同乗、徒歩等）での参加は”〇”印を、欠席の場合は”×”印を入力する。"]
[]
[]
[]
[]
[]
[]
[]
[]
[]
[]
[]
[]
[]
[]
[]
[null,"２．","「交通費個人表」をコピーして作成"]
[null,"2.1","交通費個人表である「K1」シートをコピー"]
[null,null,null,"①「K1」シートを「交通費個人表」の原紙として使う。"]
[null,null,null,"②「K1」シートをコピーして、コーチの人数分だけ「K*」シートを作成する（*=1、2、3、…の様に連番にする。）"]
[null,null,null,"　例）コーチの人数が4人の場合は、追加した３つのシート名を連番で「K2」、「K3」、「K4」に変更する。"]
[]
[]
[]
[]
[]
[]
[null,null,null,"【「K1」シートのコピー方法】"]
[null,null,null,"　➊「K1」シートをマウスの左ボタンで選択する（トランプ？みたいな絵記号が出てくる）。"]
[null,null,null,"　➋左ボタンを押したまま、「Ctrl」キーを押す（トランプ？の中に「+」の文字が出てくる）。"]
[null,null,null,"　❸左ボタンと「Ctrl」キーを押したままマウスを「K1」シートの隣に移動してから左ボタンを離すと「K1(2)」シートが出来る。"]
[null,null,null,"　❹「K1(2)」の名称を「K2」に変更する。必ず大文字・半角にすること！！。間違えるとシートが選択されなくなります。"]
[]
[null,"３．","「交通費個人表」へ「交通費総括表」から基本項目を、「交通費算出表」からガソリン代項目をコピー"]
[null,"３.1","「K*」シートを開き基本項目をコピー"]
[null,null,"(1)","交通費個人表（K*）シートを開く。"]
[null,null,"(2)","マクロ実行ボタンをクリックする。"]
[]
[]
[]
[]
[]
[]
[]
[]
[]
[]
[]
[]
[]
[null,null,"(3)","交通費総括表から「期」、「期間」、「チーム名」、「コーチ名」、「交通手段」、交通費算出表から「ガソリン代項目(距離、燃費、単価）」がコピーされる。"]
[]
[]
[]
[]
[]
[]
[]
[]
[]
[]
[]
[]
[]
[]
[null,null,"(4)","上記の(1)～(3)項をコーチの人数分行う。"]
[null,null,null,"例）コーチが4名だったら、交通費個人表シート（「K1」、「K2」、「K3」、「K4」）を順番に開いてそれぞれのシートでマクロを実行する。"]
[null,"４．","「交通費個人表」にてガソリン代以外の交通費を設定"]
[null,"4.1","駐車料金、高速料金、その他交通費（電車、バス等）を手入力で設定"]
[null,null,"(1)","L～N列に書き込む。"]
[]
[]
[]
[]
[]
[]
[]
[]
[]
[]
[]
[]
[]
[null,null,null,"※垂水スポーツガーデンの駐車料金については、団からの指示による。"]
[]
[null,"５．","「交通費総括表」にて交通費と車の台数を合計後、車2台分のガソリン代項目を計算"]
[null,"5.1","マクロで交通費及び車の台数を合計し、車2台分のガソリン代項目を設定"]
[null,null,"(1)","「交通費総括表」シートを開く。"]
[null,null,"(2)","マクロ実行ボタンをクリックする。→以下の内容がマクロで実行される。"]
[null,null,null,"①「交通費個人表」(K*）シートの交通費を合計して総括表のP～S列に書き込む。"]
[null,null,null,"②交通手段の列（H～O列）に書かれた車の台数を合計してU列に書き込む。"]
[null,null,null,"③「交通費算出表」シートから車2台分のガソリン代項目（距離、燃費、単価）を取り込み、総括表のV～X列に書き込む。"]
[null,null,null,"　　（但し、車の台数が2台を超える行のみとする。）"]
[]
[]
[]
[]
[]
[]
[]
[]
[]
[]
[]
[]
[]
[]
[null,"5.2","関数で団費補助金額を計算"]
[null,null,"(1)","団費補助金は以下の式を関数で計算する。"]
[null,null,null,"①T列 = 各コーチの車代（P～R列）+運賃（S列）の合計"]
[null,null,null,"②AB列 = 車種A2台分の車代（Y～AA列）+運賃(S列）の合計"]
[null,null,null,"③対象金額 = 車が2台以内：T列"]
[null,null,null,"　　　　 　　　 = 車が3台以上：AB列"]
[null,null,"(2)","G列の団費補助欄が「有」の時に限り、補助金が支払われる。"]
[null,null,null,"　　団費補助金額　=　AC列の対象金額　の 70％"]

{"sheet":"ﾏｸﾛの設定有効化","index":1,"n_rows":18,"n_cols":1,"rows_kept":18,"cut":false,"hidden":false,"merged":[[0,0,0,3]]}
["マクロの有効化"]
["マクロが実行できないのは、恐らく次の２項目の設定が正しくされていないためと思われます。"]
[]
["１．ファイルを開いたときに画面の左上に出るセキュリティの警告で、「コテンツの有効化」ボタンをクリックしていない。"]
[]
[]
[]
[]
[]
[]
[]
[]
[]
[]
[]
[]
[]
["２．ファイル→オプション→セキュリティセンターのマクロの設定でマクロが無効になっている。"]

{"sheet":"交通費総括表","index":2,"n_rows":158,"n_cols":35,"rows_kept":158,"cut":false,"hidden":false,"merged":[[157,21,157,23],[0,1,0,2],[0,3,0,5],[4,6,6,6],[0,16,2,16],[4,1,6,1],[4,2,6,2],[4,3,6,3],[4,4,4,5],[4,15,4,19],[0,17,0,19],[2,17,2,19],[1,17,1,19],[157,15,157,18],[157,1,157,14],[4,30,6,30],[5,4,6,4],[5,5,6,5],[4,20,6,20],[4,21,4,27],[4,7,4,14],[5,15,6,15],[5,16,6,16],[5,17,6,17],[5,18,6,18]]}
[null,"第期",null,"コーチ交通費明細書（総括表）",null,null,null,null,null,null,null,null,null,null,null,null,"期間",null,null,null,null,null,null,null,null,null,null,null,null,"改定A","2017-10-02","改定D","2018-03-03","改定G","2021-03-09"]
[null,null,null,null,null,null,"出席率",{"$f":"IF($G$3=0,\"\",H3/$G$3)","v":""},{"$f":"IF($G$3=0,\"\",I3/$G$3)","v":""},"","","","","","",null,null,"～",null,null,null,null,null,null,null,null,null,null,null,"改定Ｂ","2017-10-06","改定E","2018-05-30","改定H","2024-02-29"]
[null,"ﾁｰﾑ",null,null,null,null,{"$f":"COUNTA(E8:E157)","v":0},{"$f":"COUNTA(H8:H157)-COUNTIF(H8:H157,\"×\")","v":0},0,0,0,0,0,0,0,null,null,null,null,null,null,null,null,null,null,null,null,null,null,"改定Ｃ","2017-10-07","改定F","2019-03-28","改定Ⅰ","2025-03-20"]
["A","B","C","D","E","F","G","H","I","J","K","L","M","N","O","P","Q","R","S","T","U","V","W","X","Y","Z","AA","AB","AC","AD","AE"]
[null,"No.","日付","区分","行先",null,"団費\n補助\n有無","交通手段",null,null,null,null,null,null,null,"各ｺｰﾁの交通費と合計",null,null,null,null,"車の\n台数","車種A 2台分の交通費と合計",null,null,null,null,null,null,"対象金額","団費補助","備考"]
[null,null,null,null,"名称","備考",null,null,null,null,null,null,null,null,null,"ｶﾞｿﾘﾝ\n代","駐車\n料金","高速\n料金","その他\n運賃","合計（含運賃）",null,"距離","燃費","単価","ｶﾞｿﾘﾝ代","駐車料金","高速料金","合計（含運賃）","2台迄： T列","AC列の"]
[null,null,null,null,null,null,null,"K1","K2","K3","K4","K5","K6","K7","K8",null,null,null,null,"P～S列",null,"km","km/ℓ","円","2台分","2台分","2台分","Y～AA+S列","2台超：AB列",0.7]
[null,{"$f":"ROW()-7","v":1},null,null,null,null,null,null,null,null,null,null,null,null,null,null,null,null,null,{"$f":"SUM(P8:S8)","v":0},null,null,null,null,{"$f":"IF(U8<3,\"\",V8/W8*X8*2)","v":""},{"$f":"IF($U8<3,\"\",Q8/U8*2)","v":""},{"$f":"IF($U8<3,\"\",R8/U8*2)","v":""},{"$f":"SUM(Y8:AA8)+S8","v":0},{"$f":"IF($U8<=2,T8,AB8)","v":0},{"$f":"IF(G8=\"\",\"\",AC8*0.7)","v":""}]
[null,{"$f":"ROW()-7","v":2},null,null,null,null,null,null,null,null,null,null,null,null,null,null,null,null,null,{"$f":"SUM(P9:S9)","v":0},null,null,null,null,{"$f":"IF(U9<3,\"\",V9/W9*X9*2)","v":""},{"$f":"IF($U9<3,\"\",Q9/U9*2)","v":""},{"$f":"IF($U9<3,\"\",R9/U9*2)","v":""},{"$f":"SUM(Y9:AA9)+S9","v":0},{"$f":"IF($U9<=2,T9,AB9)","v":0},{"$f":"IF(G9=\"\",\"\",AC9*0.7)","v":""}]
[null,3,null,null,null,null,null,null,null,null,null,null,null,null,null,null,null,null,null,0,null,null,null,null,"","","",0,0,""]
[null,4,null,null,null,null,null,null,null,null,null,null,null,null,null,null,null,null,null,0,null,null,null,null,"","","",0,0,""]
[null,5,null,null,null,null,null,null,null,null,null,null,null,null,null,null,null,null,null,0,null,null,null,null,"","","",0,0,""]
[null,6,null,null,null,null,null,null,null,null,null,null,null,null,null,null,null,null,null,0,null,null,null,null,"","","",0,0,""]
[null,7,null,null,null,null,null,null,null,null,null,null,null,null,null,null,null,null,null,0,null,null,null,null,"","","",0,0,""]
[null,8,null,null,null,null,null,null,null,null,null,null,null,null,null,null,null,null,null,0,null,null,null,null,"","","",0,0,""]
[null,9,null,null,null,null,null,null,null,null,null,null,null,null,null,null,null,null,null,0,null,null,null,null,"","","",0,0,""]
[null,10,null,null,null,null,null,null,null,null,null,null,null,null,null,null,null,null,null,0,null,null,null,null,"","","",0,0,""]
[null,11,null,null,null,null,null,null,null,null,null,null,null,null,null,null,null,null,null,0,null,null,null,null,"","","",0,0,""]
[null,12,null,null,null,null,null,null,null,null,null,null,null,null,null,null,null,null,null,0,null,null,null,null,"","","",0,0,""]
[null,13,null,null,null,null,null,null,null,null,null,null,null,null,null,null,null,null,null,0,null,null,null,null,"","","",0,0,""]
[null,14,null,null,null,null,null,null,null,null,null,null,null,null,null,null,null,null,null,0,null,null,null,null,"","","",0,0,""]
[null,15,null,null,null,null,null,null,null,null,null,null,null,null,null,null,null,null,null,0,null,null,null,null,"","","",0,0,""]
[null,16,null,null,null,null,null,null,null,null,null,null,null,null,null,null,null,null,null,0,null,null,null,null,"","","",0,0,""]
[null,17,null,null,null,null,null,null,null,null,null,null,null,null,null,null,null,null,null,0,null,null,null,null,"","","",0,0,""]
[null,18,null,null,null,null,null,null,null,null,null,null,null,null,null,null,null,null,null,0,null,null,null,null,"","","",0,0,""]
[null,19,null,null,null,null,null,null,null,null,null,null,null,null,null,null,null,null,null,0,null,null,null,null,"","","",0,0,""]
[null,20,null,null,null,null,null,null,null,null,null,null,null,null,null,null,null,null,null,0,null,null,null,null,"","","",0,0,""]
[null,21,null,null,null,null,null,null,null,null,null,null,null,null,null,null,null,null,null,0,null,null,null,null,"","","",0,0,""]
[null,22,null,null,null,null,null,null,null,null,null,null,null,null,null,null,null,null,null,0,null,null,null,null,"","","",0,0,""]
[null,23,null,null,null,null,null,null,null,null,null,null,null,null,null,null,null,null,null,0,null,null,null,null,"","","",0,0,""]
[null,24,null,null,null,null,null,null,null,null,null,null,null,null,null,null,null,null,null,0,null,null,null,null,"","","",0,0,""]
[null,25,null,null,null,null,null,null,null,null,null,null,null,null,null,null,null,null,null,0,null,null,null,null,"","","",0,0,""]
[null,26,null,null,null,null,null,null,null,null,null,null,null,null,null,null,null,null,null,0,null,null,null,null,"","","",0,0,""]
[null,27,null,null,null,null,null,null,null,null,null,null,null,null,null,null,null,null,null,0,null,null,null,null,"","","",0,0,""]
[null,28,null,null,null,null,null,null,null,null,null,null,null,null,null,null,null,null,null,0,null,null,null,null,"","","",0,0,""]
[null,29,null,null,null,null,null,null,null,null,null,null,null,null,null,null,null,null,null,0,null,null,null,null,"","","",0,0,""]
[null,30,null,null,null,null,null,null,null,null,null,null,null,null,null,null,null,null,null,{"$f":"SUM(P37:S37)","v":0},null,null,null,null,{"$f":"IF(U37<3,\"\",V37/W37*X37*2)","v":""},{"$f":"IF($U37<3,\"\",Q37/U37*2)","v":""},{"$f":"IF($U37<3,\"\",R37/U37*2)","v":""},{"$f":"SUM(Y37:AA37)+S37","v":0},{"$f":"IF($U37<=2,T37,AB37)","v":0},{"$f":"IF(G37=\"\",\"\",AC37*0.7)","v":""}]
[null,31,null,null,null,null,null,null,null,null,null,null,null,null,null,null,null,null,null,0,null,null,null,null,"","","",0,0,""]
[null,32,null,null,null,null,null,null,null,null,null,null,null,null,null,null,null,null,null,0,null,null,null,null,"","","",0,0,""]
[null,33,null,null,null,null,null,null,null,null,null,null,null,null,null,null,null,null,null,0,null,null,null,null,"","","",0,0,""]
[null,34,null,null,null,null,null,null,null,null,null,null,null,null,null,null,null,null,null,0,null,null,null,null,"","","",0,0,""]
[null,35,null,null,null,null,null,null,null,null,null,null,null,null,null,null,null,null,null,0,null,null,null,null,"","","",0,0,""]
[null,36,null,null,null,null,null,null,null,null,null,null,null,null,null,null,null,null,null,0,null,null,null,null,"","","",0,0,""]
[null,37,null,null,null,null,null,null,null,null,null,null,null,null,null,null,null,null,null,0,null,null,null,null,"","","",0,0,""]
[null,38,null,null,null,null,null,null,null,null,null,null,null,null,null,null,null,null,null,0,null,null,null,null,"","","",0,0,""]
[null,39,null,null,null,null,null,null,null,null,null,null,null,null,null,null,null,null,null,0,null,null,null,null,"","","",0,0,""]
[null,40,null,null,null,null,null,null,null,null,null,null,null,null,null,null,null,null,null,0,null,null,null,null,"","","",0,0,""]
[null,41,null,null,null,null,null,null,null,null,null,null,null,null,null,null,null,null,null,0,null,null,null,null,"","","",0,0,""]
[null,42,null,null,null,null,null,null,null,null,null,null,null,null,null,null,null,null,null,0,null,null,null,null,"","","",0,0,""]
[null,43,null,null,null,null,null,null,null,null,null,null,null,null,null,null,null,null,null,0,null,null,null,null,"","","",0,0,""]
[null,44,null,null,null,null,null,null,null,null,null,null,null,null,null,null,null,null,null,0,null,null,null,null,"","","",0,0,""]
[null,45,null,null,null,null,null,null,null,null,null,null,null,null,null,null,null,null,null,0,null,null,null,null,"","","",0,0,""]
[null,46,null,null,null,null,null,null,null,null,null,null,null,null,null,null,null,null,null,0,null,null,null,null,"","","",0,0,""]
[null,47,null,null,null,null,null,null,null,null,null,null,null,null,null,null,null,null,null,0,null,null,null,null,"","","",0,0,""]
[null,48,null,null,null,null,null,null,null,null,null,null,null,null,null,null,null,null,null,0,null,null,null,null,"","","",0,0,""]
[null,49,null,null,null,null,null,null,null,null,null,null,null,null,null,null,null,null,null,0,null,null,null,null,"","","",0,0,""]
[null,50,null,null,null,null,null,null,null,null,null,null,null,null,null,null,null,null,null,0,null,null,null,null,"","","",0,0,""]
[null,51,null,null,null,null,null,null,null,null,null,null,null,null,null,null,null,null,null,0,null,null,null,null,"","","",0,0,""]
[null,52,null,null,null,null,null,null,null,null,null,null,null,null,null,null,null,null,null,0,null,null,null,null,"","","",0,0,""]
[null,53,null,null,null,null,null,null,null,null,null,null,null,null,null,null,null,null,null,0,null,null,null,null,"","","",0,0,""]
[null,54,null,null,null,null,null,null,null,null,null,null,null,null,null,null,null,null,null,0,null,null,null,null,"","","",0,0,""]
[null,55,null,null,null,null,null,null,null,null,null,null,null,null,null,null,null,null,null,0,null,null,null,null,"","","",0,0,""]
[null,56,null,null,null,null,null,null,null,null,null,null,null,null,null,null,null,null,null,0,null,null,null,null,"","","",0,0,""]
[null,57,null,null,null,null,null,null,null,null,null,null,null,null,null,null,null,null,null,0,null,null,null,null,"","","",0,0,""]
[null,58,null,null,null,null,null,null,null,null,null,null,null,null,null,null,null,null,null,0,null,null,null,null,"","","",0,0,""]
[null,59,null,null,null,null,null,null,null,null,null,null,null,null,null,null,null,null,null,0,null,null,null,null,"","","",0,0,""]
[null,60,null,null,null,null,null,null,null,null,null,null,null,null,null,null,null,null,null,0,null,null,null,null,"","","",0,0,""]
[null,61,null,null,null,null,null,null,null,null,null,null,null,null,null,null,null,null,null,0,null,null,null,null,"","","",0,0,""]
[null,62,null,null,null,null,null,null,null,null,null,null,null,null,null,null,null,null,null,0,null,null,null,null,"","","",0,0,""]
[null,63,null,null,null,null,null,null,null,null,null,null,null,null,null,null,null,null,null,0,null,null,null,null,"","","",0,0,""]
[null,64,null,null,null,null,null,null,null,null,null,null,null,null,null,null,null,null,null,0,null,null,null,null,"","","",0,0,""]
[null,65,null,null,null,null,null,null,null,null,null,null,null,null,null,null,null,null,null,0,null,null,null,null,"","","",0,0,""]
[null,66,null,null,null,null,null,null,null,null,null,null,null,null,null,null,null,null,null,0,null,null,null,null,"","","",0,0,""]
[null,67,null,null,null,null,null,null,null,null,null,null,null,null,null,null,null,null,null,0,null,null,null,null,"","","",0,0,""]
[null,68,null,null,null,null,null,null,null,null,null,null,null,null,null,null,null,null,null,0,null,null,null,null,"","","",0,0,""]
[null,69,null,null,null,null,null,null,null,null,null,null,null,null,null,null,null,null,null,0,null,null,null,null,"","","",0,0,""]
[null,70,null,null,null,null,null,null,null,null,null,null,null,null,null,null,null,null,null,0,null,null,null,null,"","","",0,0,""]
[null,71,null,null,null,null,null,null,null,null,null,null,null,null,null,null,null,null,null,0,null,null,null,null,"","","",0,0,""]
[null,72,null,null,null,null,null,null,null,null,null,null,null,null,null,null,null,null,null,0,null,null,null,null,"","","",0,0,""]
[null,73,null,null,null,null,null,null,null,null,null,null,null,null,null,null,null,null,null,0,null,null,null,null,"","","",0,0,""]
[null,74,null,null,null,null,null,null,null,null,null,null,null,null,null,null,null,null,null,0,null,null,null,null,"","","",0,0,""]
[null,75,null,null,null,null,null,null,null,null,null,null,null,null,null,null,null,null,null,0,null,null,null,null,"","","",0,0,""]
[null,76,null,null,null,null,null,null,null,null,null,null,null,null,null,null,null,null,null,0,null,null,null,null,"","","",0,0,""]
[null,77,null,null,null,null,null,null,null,null,null,null,null,null,null,null,null,null,null,0,null,null,null,null,"","","",0,0,""]
[null,78,null,null,null,null,null,null,null,null,null,null,null,null,null,null,null,null,null,0,null,null,null,null,"","","",0,0,""]
[null,79,null,null,null,null,null,null,null,null,null,null,null,null,null,null,null,null,null,0,null,null,null,null,"","","",0,0,""]
[null,80,null,null,null,null,null,null,null,null,null,null,null,null,null,null,null,null,null,0,null,null,null,null,"","","",0,0,""]
[null,81,null,null,null,null,null,null,null,null,null,null,null,null,null,null,null,null,null,0,null,null,null,null,"","","",0,0,""]
[null,82,null,null,null,null,null,null,null,null,null,null,null,null,null,null,null,null,null,0,null,null,null,null,"","","",0,0,""]
[null,83,null,null,null,null,null,null,null,null,null,null,null,null,null,null,null,null,null,0,null,null,null,null,"","","",0,0,""]
[null,84,null,null,null,null,null,null,null,null,null,null,null,null,null,null,null,null,null,0,null,null,null,null,"","","",0,0,""]
[null,85,null,null,null,null,null,null,null,null,null,null,null,null,null,null,null,null,null,0,null,null,null,null,"","","",0,0,""]
[null,86,null,null,null,null,null,null,null,null,null,null,null,null,null,null,null,null,null,0,null,null,null,null,"","","",0,0,""]
[null,87,null,null,null,null,null,null,null,null,null,null,null,null,null,null,null,null,null,0,null,null,null,null,"","","",0,0,""]
[null,88,null,null,null,null,null,null,null,null,null,null,null,null,null,null,null,null,null,0,null,null,null,null,"","","",0,0,""]
[null,89,null,null,null,null,null,null,null,null,null,null,null,null,null,null,null,null,null,0,null,null,null,null,"","","",0,0,""]
[null,90,null,null,null,null,null,null,null,null,null,null,null,null,null,null,null,null,null,0,null,null,null,null,"","","",0,0,""]
[null,91,null,null,null,null,null,null,null,null,null,null,null,null,null,null,null,null,null,0,null,null,null,null,"","","",0,0,""]
[null,92,null,null,null,null,null,null,null,null,null,null,null,null,null,null,null,null,null,0,null,null,null,null,"","","",0,0,""]
[null,93,null,null,null,null,null,null,null,null,null,null,null,null,null,null,null,null,null,0,null,null,null,null,"","","",0,0,""]
[null,94,null,null,null,null,null,null,null,null,null,null,null,null,null,null,null,null,null,{"$f":"SUM(P101:S101)","v":0},null,null,null,null,{"$f":"IF(U101<3,\"\",V101/W101*X101*2)","v":""},{"$f":"IF($U101<3,\"\",Q101/U101*2)","v":""},{"$f":"IF($U101<3,\"\",R101/U101*2)","v":""},{"$f":"SUM(Y101:AA101)+S101","v":0},{"$f":"IF($U101<=2,T101,AB101)","v":0},{"$f":"IF(G101=\"\",\"\",AC101*0.7)","v":""}]
[null,95,null,null,null,null,null,null,null,null,null,null,null,null,null,null,null,null,null,0,null,null,null,null,"","","",0,0,""]
[null,96,null,null,null,null,null,null,null,null,null,null,null,null,null,null,null,null,null,0,null,null,null,null,"","","",0,0,""]
[null,97,null,null,null,null,null,null,null,null,null,null,null,null,null,null,null,null,null,0,null,null,null,null,"","","",0,0,""]
[null,98,null,null,null,null,null,null,null,null,null,null,null,null,null,null,null,null,null,0,null,null,null,null,"","","",0,0,""]
[null,99,null,null,null,null,null,null,null,null,null,null,null,null,null,null,null,null,null,0,null,null,null,null,"","","",0,0,""]
[null,100,null,null,null,null,null,null,null,null,null,null,null,null,null,null,null,null,null,0,null,null,null,null,"","","",0,0,""]
[null,101,null,null,null,null,null,null,null,null,null,null,null,null,null,null,null,null,null,0,null,null,null,null,"","","",0,0,""]
[null,102,null,null,null,null,null,null,null,null,null,null,null,null,null,null,null,null,null,0,null,null,null,null,"","","",0,0,""]
[null,103,null,null,null,null,null,null,null,null,null,null,null,null,null,null,null,null,null,0,null,null,null,null,"","","",0,0,""]
[null,104,null,null,null,null,null,null,null,null,null,null,null,null,null,null,null,null,null,0,null,null,null,null,"","","",0,0,""]
[null,105,null,null,null,null,null,null,null,null,null,null,null,null,null,null,null,null,null,0,null,null,null,null,"","","",0,0,""]
[null,106,null,null,null,null,null,null,null,null,null,null,null,null,null,null,null,null,null,0,null,null,null,null,"","","",0,0,""]
[null,107,null,null,null,null,null,null,null,null,null,null,null,null,null,null,null,null,null,0,null,null,null,null,"","","",0,0,""]
[null,108,null,null,null,null,null,null,null,null,null,null,null,null,null,null,null,null,null,0,null,null,null,null,"","","",0,0,""]
[null,109,null,null,null,null,null,null,null,null,null,null,null,null,null,null,null,null,null,0,null,null,null,null,"","","",0,0,""]
[null,110,null,null,null,null,null,null,null,null,null,null,null,null,null,null,null,null,null,0,null,null,null,null,"","","",0,0,""]
[null,111,null,null,null,null,null,null,null,null,null,null,null,null,null,null,null,null,null,0,null,null,null,null,"","","",0,0,""]
[null,112,null,null,null,null,null,null,null,null,null,null,null,null,null,null,null,null,null,0,null,null,null,null,"","","",0,0,""]
[null,113,null,null,null,null,null,null,null,null,null,null,null,null,null,null,null,null,null,0,null,null,null,null,"","","",0,0,""]
[null,114,null,null,null,null,null,null,null,null,null,null,null,null,null,null,null,null,null,0,null,null,null,null,"","","",0,0,""]
[null,115,null,null,null,null,null,null,null,null,null,null,null,null,null,null,null,null,null,0,null,null,null,null,"","","",0,0,""]
[null,116,null,null,null,null,null,null,null,null,null,null,null,null,null,null,null,null,null,0,null,null,null,null,"","","",0,0,""]
[null,117,null,null,null,null,null,null,null,null,null,null,null,null,null,null,null,null,null,0,null,null,null,null,"","","",0,0,""]
[null,118,null,null,null,null,null,null,null,null,null,null,null,null,null,null,null,null,null,0,null,null,null,null,"","","",0,0,""]
[null,119,null,null,null,null,null,null,null,null,null,null,null,null,null,null,null,null,null,0,null,null,null,null,"","","",0,0,""]
[null,120,null,null,null,null,null,null,null,null,null,null,null,null,null,null,null,null,null,0,null,null,null,null,"","","",0,0,""]
[null,121,null,null,null,null,null,null,null,null,null,null,null,null,null,null,null,null,null,0,null,null,null,null,"","","",0,0,""]
[null,122,null,null,null,null,null,null,null,null,null,null,null,null,null,null,null,null,null,0,null,null,null,null,"","","",0,0,""]
[null,123,null,null,null,null,null,null,null,null,null,null,null,null,null,null,null,null,null,0,null,null,null,null,"","","",0,0,""]
[null,124,null,null,null,null,null,null,null,null,null,null,null,null,null,null,null,null,null,0,null,null,null,null,"","","",0,0,""]
[null,125,null,null,null,null,null,null,null,null,null,null,null,null,null,null,null,null,null,0,null,null,null,null,"","","",0,0,""]
[null,126,null,null,null,null,null,null,null,null,null,null,null,null,null,null,null,null,null,0,null,null,null,null,"","","",0,0,""]
[null,127,null,null,null,null,null,null,null,null,null,null,null,null,null,null,null,null,null,0,null,null,null,null,"","","",0,0,""]
[null,128,null,null,null,null,null,null,null,null,null,null,null,null,null,null,null,null,null,0,null,null,null,null,"","","",0,0,""]
[null,129,null,null,null,null,null,null,null,null,null,null,null,null,null,null,null,null,null,0,null,null,null,null,"","","",0,0,""]
[null,130,null,null,null,null,null,null,null,null,null,null,null,null,null,null,null,null,null,0,null,null,null,null,"","","",0,0,""]
[null,131,null,null,null,null,null,null,null,null,null,null,null,null,null,null,null,null,null,0,null,null,null,null,"","","",0,0,""]
[null,132,null,null,null,null,null,null,null,null,null,null,null,null,null,null,null,null,null,0,null,null,null,null,"","","",0,0,""]
[null,133,null,null,null,null,null,null,null,null,null,null,null,null,null,null,null,null,null,0,null,null,null,null,"","","",0,0,""]
[null,134,null,null,null,null,null,null,null,null,null,null,null,null,null,null,null,null,null,0,null,null,null,null,"","","",0,0,""]
[null,135,null,null,null,null,null,null,null,null,null,null,null,null,null,null,null,null,null,0,null,null,null,null,"","","",0,0,""]
[null,136,null,null,null,null,null,null,null,null,null,null,null,null,null,null,null,null,null,0,null,null,null,null,"","","",0,0,""]
[null,137,null,null,null,null,null,null,null,null,null,null,null,null,null,null,null,null,null,0,null,null,null,null,"","","",0,0,""]
[null,138,null,null,null,null,null,null,null,null,null,null,null,null,null,null,null,null,null,0,null,null,null,null,"","","",0,0,""]
[null,139,null,null,null,null,null,null,null,null,null,null,null,null,null,null,null,null,null,0,null,null,null,null,"","","",0,0,""]
[null,140,null,null,null,null,null,null,null,null,null,null,null,null,null,null,null,null,null,0,null,null,null,null,"","","",0,0,""]
[null,141,null,null,null,null,null,null,null,null,null,null,null,null,null,null,null,null,null,0,null,null,null,null,"","","",0,0,""]
[null,142,null,null,null,null,null,null,null,null,null,null,null,null,null,null,null,null,null,0,null,null,null,null,"","","",0,0,""]
[null,143,null,null,null,null,null,null,null,null,null,null,null,null,null,null,null,null,null,0,null,null,null,null,"","","",0,0,""]
[null,144,null,null,null,null,null,null,null,null,null,null,null,null,null,null,null,null,null,0,null,null,null,null,"","","",0,0,""]
[null,145,null,null,null,null,null,null,null,null,null,null,null,null,null,null,null,null,null,0,null,null,null,null,"","","",0,0,""]
[null,146,null,null,null,null,null,null,null,null,null,null,null,null,null,null,null,null,null,0,null,null,null,null,"","","",0,0,""]
[null,147,null,null,null,null,null,null,null,null,null,null,null,null,null,null,null,null,null,0,null,null,null,null,"","","",0,0,""]
[null,148,null,null,null,null,null,null,null,null,null,null,null,null,null,null,null,null,null,0,null,null,null,null,"","","",0,0,""]
[null,149,null,null,null,null,null,null,null,null,null,null,null,null,null,null,null,null,null,0,null,null,null,null,"","","",0,0,""]
[null,150,null,null,null,null,null,null,null,null,null,null,null,null,null,null,null,null,null,{"$f":"SUM(P157:S157)","v":0},null,null,null,null,"","","",0,0,""]
[null,null,null,null,null,null,null,null,null,null,null,null,null,null,null,"合計",null,null,null,{"$f":"SUM(T8:T157)","v":0},null,"合計",null,null,{"$f":"SUM(Y8:Y157)","v":0},{"$f":"SUM(Z8:Z157)","v":0},0,0,0,0]

{"sheet":"K1","index":3,"n_rows":158,"n_cols":17,"rows_kept":158,"cut":false,"hidden":false,"merged":[[4,16,6,16],[0,11,2,11],[1,12,1,14],[4,15,6,15],[4,2,6,2],[4,3,6,3],[157,1,157,13],[2,12,2,14],[4,0,6,0],[0,12,0,14],[5,4,6,4],[5,5,6,5],[0,3,0,5],[0,1,0,2],[4,14,6,14],[4,1,6,1],[4,6,6,6],[4,4,4,5],[4,7,4,10],[4,12,6,12]]}
[null,"第期",null,"コーチ交通費明細書（個人表）",null,null,null,null,null,null,null,"期間"]
[null,null,null,null,null,null,null,null,null,null,null,null,"～"]
[null,"ﾁｰﾑ",null,"ｺｰﾁ"]
["A","B","C","D","E","F","G","H","I","J","K","L","M","N","O","P","Q"]
[null,"No.","日付","区分","行先",null,"交通\n手段","往復ｶﾞｿﾘﾝ代",null,null,null,"駐車料金","高速\n料金","その他","合計","備考","ｶﾞｿﾘﾝ代関連項目の転記"]
[null,null,null,null,"名称","備考",null,"距離","燃費","単価","ｶﾞｿﾘﾝ代","（上限",null,"（電車､"]
[null,null,null,null,null,null,null,"（(km）","（km/ℓ）","（円）","（円）","700円）",null,"ﾊﾞｽ等）"]
[null,{"$f":"ROW()-7","v":1},null,null,null,null,null,null,null,null,{"$f":"IF(OR(H8=\"\",H8=0),0,H8/I8*J8)","v":0},null,null,null,{"$f":"SUM(K8:N8)","v":0}]
[null,{"$f":"ROW()-7","v":2},null,null,null,null,null,null,null,null,{"$f":"IF(OR(H9=\"\",H9=0),0,H9/I9*J9)","v":0},null,null,null,{"$f":"SUM(K9:N9)","v":0}]
[null,3,null,null,null,null,null,null,null,null,0,null,null,null,0]
[null,4,null,null,null,null,null,null,null,null,0,null,null,null,0]
[null,5,null,null,null,null,null,null,null,null,0,null,null,null,0]
[null,6,null,null,null,null,null,null,null,null,0,null,null,null,0]
[null,7,null,null,null,null,null,null,null,null,0,null,null,null,0]
[null,8,null,null,null,null,null,null,null,null,0,null,null,null,0]
[null,9,null,null,null,null,null,null,null,null,0,null,null,null,0]
[null,10,null,null,null,null,null,null,null,null,0,null,null,null,0]
[null,11,null,null,null,null,null,null,null,null,0,null,null,null,0]
[null,12,null,null,null,null,null,null,null,null,0,null,null,null,0]
[null,13,null,null,null,null,null,null,null,null,0,null,null,null,0]
[null,14,null,null,null,null,null,null,null,null,0,null,null,null,0]
[null,15,null,null,null,null,null,null,null,null,0,null,null,null,0]
[null,16,null,null,null,null,null,null,null,null,0,null,null,null,0]
[null,17,null,null,null,null,null,null,null,null,0,null,null,null,0]
[null,18,null,null,null,null,null,null,null,null,0,null,null,null,0]
[null,19,null,null,null,null,null,null,null,null,0,null,null,null,0]
[null,20,null,null,null,null,null,null,null,null,0,null,null,null,0]
[null,21,null,null,null,null,null,null,null,null,0,null,null,null,0]
[null,22,null,null,null,null,null,null,null,null,0,null,null,null,0]
[null,23,null,null,null,null,null,null,null,null,0,null,null,null,0]
[null,24,null,null,null,null,null,null,null,null,0,null,null,null,0]
[null,25,null,null,null,null,null,null,null,null,0,null,null,null,0]
[null,26,null,null,null,null,null,null,null,null,0,null,null,null,0]
[null,27,null,null,null,null,null,null,null,null,0,null,null,null,0]
[null,28,null,null,null,null,null,null,null,null,0,null,null,null,0]
[null,29,null,null,null,null,null,null,null,null,{"$f":"IF(OR(H36=\"\",H36=0),0,H36/I36*J36)","v":0},null,null,null,{"$f":"SUM(K36:N36)","v":0}]
[null,30,null,null,null,null,null,null,null,null,0,null,null,null,0]
[null,31,null,null,null,null,null,null,null,null,0,null,null,null,0]
[null,32,null,null,null,null,null,null,null,null,0,null,null,null,0]
[null,33,null,null,null,null,null,null,null,null,0,null,null,null,0]
[null,34,null,null,null,null,null,null,null,null,0,null,null,null,0]
[null,35,null,null,null,null,null,null,null,null,{"$f":"IF(OR(H42=\"\",H42=0),0,H42/I42*J42)","v":0},null,null,null,{"$f":"SUM(K42:N42)","v":0}]
[null,36,null,null,null,null,null,null,null,null,0,null,null,null,0]
[null,37,null,null,null,null,null,null,null,null,0,null,null,null,0]
[null,38,null,null,null,null,null,null,null,null,0,null,null,null,0]
[null,39,null,null,null,null,null,null,null,null,0,null,null,null,0]
[null,40,null,null,null,null,null,null,null,null,0,null,null,null,0]
[null,41,null,null,null,null,null,null,null,null,0,null,null,null,0]
[null,42,null,null,null,null,null,null,null,null,0,null,null,null,0]
[null,43,null,null,null,null,null,null,null,null,0,null,null,null,0]
[null,44,null,null,null,null,null,null,null,null,0,null,null,null,0]
[null,45,null,null,null,null,null,null,null,null,0,null,null,null,0]
[null,46,null,null,null,null,null,null,null,null,0,null,null,null,0]
[null,47,null,null,null,null,null,null,null,null,0,null,null,null,0]
[null,48,null,null,null,null,null,null,null,null,0,null,null,null,0]
[null,49,null,null,null,null,null,null,null,null,0,null,null,null,0]
[null,50,null,null,null,null,null,null,null,null,0,null,null,null,0]
[null,51,null,null,null,null,null,null,null,null,0,null,null,null,0]
[null,52,null,null,null,null,null,null,null,null,0,null,null,null,0]
[null,53,null,null,null,null,null,null,null,null,0,null,null,null,0]
[null,54,null,null,null,null,null,null,null,null,0,null,null,null,0]
[null,55,null,null,null,null,null,null,null,null,0,null,null,null,0]
[null,56,null,null,null,null,null,null,null,null,0,null,null,null,0]
[null,57,null,null,null,null,null,null,null,null,0,null,null,null,0]
[null,58,null,null,null,null,null,null,null,null,0,null,null,null,0]
[null,59,null,null,null,null,null,null,null,null,0,null,null,null,0]
[null,60,null,null,null,null,null,null,null,null,0,null,null,null,0]
[null,61,null,null,null,null,null,null,null,null,0,null,null,null,0]
[null,62,null,null,null,null,null,null,null,null,0,null,null,null,0]
[null,63,null,null,null,null,null,null,null,null,0,null,null,null,0]
[null,64,null,null,null,null,null,null,null,null,0,null,null,null,0]
[null,65,null,null,null,null,null,null,null,null,0,null,null,null,0]
[null,66,null,null,null,null,null,null,null,null,0,null,null,null,0]
[null,67,null,null,null,null,null,null,null,null,0,null,null,null,0]
[null,68,null,null,null,null,null,null,null,null,0,null,null,null,0]
[null,69,null,null,null,null,null,null,null,null,0,null,null,null,0]
[null,70,null,null,null,null,null,null,null,null,0,null,null,null,0]
[null,71,null,null,null,null,null,null,null,null,0,null,null,null,0]
[null,72,null,null,null,null,null,null,null,null,0,null,null,null,0]
[null,73,null,null,null,null,null,null,null,null,0,null,null,null,0]
[null,74,null,null,null,null,null,null,null,null,0,null,null,null,0]
[null,75,null,null,null,null,null,null,null,null,0,null,null,null,0]
[null,76,null,null,null,null,null,null,null,null,0,null,null,null,0]
[null,77,null,null,null,null,null,null,null,null,0,null,null,null,0]
[null,78,null,null,null,null,null,null,null,null,0,null,null,null,0]
[null,79,null,null,null,null,null,null,null,null,0,null,null,null,0]
[null,80,null,null,null,null,null,null,null,null,0,null,null,null,0]
[null,81,null,null,null,null,null,null,null,null,0,null,null,null,0]
[null,82,null,null,null,null,null,null,null,null,0,null,null,null,0]
[null,83,null,null,null,null,null,null,null,null,0,null,null,null,0]
[null,84,null,null,null,null,null,null,null,null,0,null,null,null,0]
[null,85,null,null,null,null,null,null,null,null,0,null,null,null,0]
[null,86,null,null,null,null,null,null,null,null,0,null,null,null,0]
[null,87,null,null,null,null,null,null,null,null,0,null,null,null,0]
[null,88,null,null,null,null,null,null,null,null,0,null,null,null,0]
[null,89,null,null,null,null,null,null,null,null,0,null,null,null,0]
[null,90,null,null,null,null,null,null,null,null,0,null,null,null,0]
[null,91,null,null,null,null,null,null,null,null,0,null,null,null,0]
[null,92,null,null,null,null,null,null,null,null,0,null,null,null,0]
[null,93,null,null,null,null,null,null,null,null,0,null,null,null,0]
[null,94,null,null,null,null,null,null,null,null,0,null,null,null,0]
[null,95,null,null,null,null,null,null,null,null,0,null,null,null,0]
[null,96,null,null,null,null,null,null,null,null,0,null,null,null,0]
[null,97,null,null,null,null,null,null,null,null,0,null,null,null,0]
[null,98,null,null,null,null,null,null,null,null,0,null,null,null,0]
[null,99,null,null,null,null,null,null,null,null,{"$f":"IF(OR(H106=\"\",H106=0),0,H106/I106*J106)","v":0},null,null,null,{"$f":"SUM(K106:N106)","v":0}]
[null,100,null,null,null,null,null,null,null,null,0,null,null,null,0]
[null,101,null,null,null,null,null,null,null,null,0,null,null,null,0]
[null,102,null,null,null,null,null,null,null,null,0,null,null,null,0]
[null,103,null,null,null,null,null,null,null,null,0,null,null,null,0]
[null,104,null,null,null,null,null,null,null,null,0,null,null,null,0]
[null,105,null,null,null,null,null,null,null,null,0,null,null,null,0]
[null,106,null,null,null,null,null,null,null,null,0,null,null,null,0]
[null,107,null,null,null,null,null,null,null,null,{"$f":"IF(OR(H114=\"\",H114=0),0,H114/I114*J114)","v":0},null,null,null,{"$f":"SUM(K114:N114)","v":0}]
[null,108,null,null,null,null,null,null,null,null,0,null,null,null,0]
[null,109,null,null,null,null,null,null,null,null,0,null,null,null,0]
[null,110,null,null,null,null,null,null,null,null,0,null,null,null,0]
[null,111,null,null,null,null,null,null,null,null,0,null,null,null,0]
[null,112,null,null,null,null,null,null,null,null,0,null,null,null,0]
[null,113,null,null,null,null,null,null,null,null,0,null,null,null,0]
[null,114,null,null,null,null,null,null,null,null,0,null,null,null,0]
[null,115,null,null,null,null,null,null,null,null,0,null,null,null,0]
[null,116,null,null,null,null,null,null,null,null,0,null,null,null,0]
[null,117,null,null,null,null,null,null,null,null,0,null,null,null,0]
[null,118,null,null,null,null,null,null,null,null,0,null,null,null,0]
[null,119,null,null,null,null,null,null,null,null,0,null,null,null,0]
[null,120,null,null,null,null,null,null,null,null,0,null,null,null,0]
[null,121,null,null,null,null,null,null,null,null,0,null,null,null,0]
[null,122,null,null,null,null,null,null,null,null,0,null,null,null,0]
[null,123,null,null,null,null,null,null,null,null,0,null,null,null,0]
[null,124,null,null,null,null,null,null,null,null,0,null,null,null,0]
[null,125,null,null,null,null,null,null,null,null,0,null,null,null,0]
[null,126,null,null,null,null,null,null,null,null,0,null,null,null,0]
[null,127,null,null,null,null,null,null,null,null,0,null,null,null,0]
[null,128,null,null,null,null,null,null,null,null,0,null,null,null,0]
[null,129,null,null,null,null,null,null,null,null,0,null,null,null,0]
[null,130,null,null,null,null,null,null,null,null,0,null,null,null,0]
[null,131,null,null,null,null,null,null,null,null,0,null,null,null,0]
[null,132,null,null,null,null,null,null,null,null,0,null,null,null,0]
[null,133,null,null,null,null,null,null,null,null,0,null,null,null,0]
[null,134,null,null,null,null,null,null,null,null,0,null,null,null,0]
[null,135,null,null,null,null,null,null,null,null,0,null,null,null,0]
[null,136,null,null,null,null,null,null,null,null,0,null,null,null,0]
[null,137,null,null,null,null,null,null,null,null,0,null,null,null,0]
[null,138,null,null,null,null,null,null,null,null,0,null,null,null,0]
[null,139,null,null,null,null,null,null,null,null,0,null,null,null,0]
[null,140,null,null,null,null,null,null,null,null,0,null,null,null,0]
[null,141,null,null,null,null,null,null,null,null,0,null,null,null,0]
[null,142,null,null,null,null,null,null,null,null,0,null,null,null,0]
[null,143,null,null,null,null,null,null,null,null,0,null,null,null,0]
[null,144,null,null,null,null,null,null,null,null,0,null,null,null,0]
[null,145,null,null,null,null,null,null,null,null,0,null,null,null,0]
[null,146,null,null,null,null,null,null,null,null,0,null,null,null,0]
[null,147,null,null,null,null,null,null,null,null,0,null,null,null,0]
[null,148,null,null,null,null,null,null,null,null,0,null,null,null,0]
[null,149,null,null,null,null,null,null,null,null,0,null,null,null,0]
[null,150,null,null,null,null,null,null,null,null,0,null,null,null,0]
[null,"合　　計　",null,null,null,null,null,null,null,null,null,null,null,null,{"$f":"SUM(O8:O157)","v":0}]

{"sheet":"交通費算出表","index":4,"n_rows":153,"n_cols":12,"rows_kept":153,"cut":false,"hidden":false,"merged":[[0,6,0,7],[4,1,7,1],[0,2,0,3],[2,2,2,3],[4,4,4,5],[3,2,3,3],[9,11,10,11],[9,1,10,1],[9,2,10,2],[9,3,10,3],[9,4,9,5],[9,6,9,8]]}
[null,null,"交通費算出表",null,"改定","C","2025-03-20"]
[]
[null,1,"ガソリン単価",null,140,"円/ℓ",null,"（市場価格で変動）"]
[null,2,"タルスポへの自転車交通費",null,400,"円","C","（山電の往復運賃と同額）"]
[null,3,"車種","内容","燃費"]
[null,null,"車種Ａ","排気量2000cc以上",8,"km/ℓ"]
[null,null,"車種Ｂ","排気量2000cc未満",10,"km/ℓ","A"]
[null,null,"バイク","排気量に関わらず一定",15,"km/ℓ","A"]
[]
[null,"№","見出し","会場","距離(km)\n[片道]",null,"ガソリン代",null,null,"運賃",null,"読み方"]
[null,null,null,null,"片道","往復","車種Ａ","車種Ｂ","バイク","電車"]
[null,{"$f":"ROW()-11","v":1},{"$f":"MID(L12,1,1)","v":"ヒ"},"東舞子小学校",0,{"$f":"E12*2","v":0},{"$f":"$F12/$E$6*$E$3","v":0},{"$f":"$F12/$E$7*$E$3","v":0},{"$f":"$F12/$E$8*$E$3","v":0},null,null,{"$f":"PHONETIC(D12)","v":"ヒガシマイコショウガッコウ"}]
[null,2,{"$f":"MID(L13,1,1)","v":"ヒ"},"東舞子小学校第２グランド",0,{"$f":"E13*2","v":0},0,0,0,null,null,"ヒガシマイコショウガッコウダイ２グランド"]
[null,{"$f":"ROW()-11","v":3},{"$f":"MID(L14,1,1)","v":"カ"},"霞ヶ丘小学校",0,{"$f":"E14*2","v":0},0,0,0,null,null,"カスミガオカショウガッコウ"]
[null,4,{"$f":"MID(L15,1,1)","v":"リ"},"緑地公園",0,{"$f":"E15*2","v":0},0,0,0,null,null,"リョクチコウエン"]
[null,5,{"$f":"MID(L16,1,1)","v":"タ"},"垂水スポーツガーデン",5,{"$f":"E16*2","v":10},175,140,93.333333333333329,null,null,"タルミスポーツガーデン"]
[null,{"$f":"ROW()-11","v":6},{"$f":"MID(L17,1,1)","v":"ア"},"明石海浜公園",28,{"$f":"E17*2","v":56},980,784,522.66666666666663,null,null,"アカシカイヒンコウエン"]
[null,7,"ア","明石公園球技場",9,18,{"$f":"$F18/$E$6*$E$3","v":315},{"$f":"$F18/$E$7*$E$3","v":252},{"$f":"$F18/$E$8*$E$3","v":168},null,null,"アカシコウエンキュウギジョウ"]
[null,8,"ア","明石少年自然の家",15,30,525,420,280,null,null,"アカシショウネンシゼンノイエ"]
[null,9,"ア","あじさい公園",4,8,140,112,74.666666666666671,null,null,"アジサイコウエン"]
[null,10,"ア","有岡小学校(伊丹)",60,120,2100,1680,1120,null,null,"アリオカショウガッコウ(イタミ)"]
[null,11,"ア","有瀬小学校",10,20,350,280,186.66666666666666,null,null,"アリセショウガッコウ"]
[null,12,"ア","有野小学校",40,80,1400,1120,746.66666666666663,null,null,"アリノショウガッコウ"]
[null,13,"ア","淡路五色アスパ",55,110,1925,1540,1026.6666666666665,null,null,"アワジゴシキアスパ"]
[null,14,"ア","淡路佐野運動公園",39,78,1365,1092,728,null,null,"アワジサノウンドウコウエン"]
[null,15,"ア","淡路東浦サンパーク",26,52,910,728,485.33333333333337,null,null,"アワジヒガシウラサンパーク"]
[null,16,"イ","伊川谷小学校",8,16,280,224,149.33333333333334,null,null,"イガワダニショウガッコウ"]
[null,17,"イ","磯上グランド",21,42,735,588,392,null,null,"イソガミグランド"]
[null,18,"イ","井吹の丘小学校",10.5,21,367.5,294,196,null,null,"イブキノオカショウガッコウ"]
[null,19,"イ","井吹西小学校",10,20,350,280,186.66666666666666,null,null,"イブキニシショウガッコウ"]
[null,20,"イ","いぶきの森",10,20,350,280,186.66666666666666,null,null,"イブキノモリ"]
[null,21,"イ","井吹東小学校",11,22,385,308,205.33333333333331,null,null,"イブキヒガシショウガッコウ"]
[null,22,"イ","今田グランド",65,130,2275,1820,1213.3333333333333,null,null,"イマダグランド"]
[null,23,"イ","岩岡公園グランド",21,42,735,588,392,null,null,"イワオカコウエングランド"]
[null,24,"イ","岩岡小学校",20,40,700,560,373.33333333333331,null,null,"イワオカショウガッコウ"]
[null,25,"イ","稲見サンスポーツグランド",24,48,840,672,448,null,null,"イナミサンスポーツグランド"]
[null,26,"イ","稲見中央公園",26,52,910,728,485.33333333333337,null,null,"イナミチュウオウコウエン"]
[null,27,"イ","猪名川町スポーツグランド",68,136,2380,1904,1269.3333333333333,null,null,"イナガワチョウスポーツグランド"]
[null,28,"エ","江井ヶ島小学校",15,30,525,420,280,null,null,"エイガシマショウガッコウ"]
[null,29,"オ","大池小学校",29,58,1015,812,541.33333333333337,null,null,"オオイケショウガッコウ"]
[null,30,"オ","大原山グランド",28,56,980,784,522.66666666666663,null,null,"オオハラヤマグランド"]
[null,31,"オ","押部谷小学校",19,38,665,532,354.66666666666663,null,null,"オシベダニショウガッコウ"]
[null,32,"カ","科学技術高校",25,50,875,700,466.66666666666669,null,null,"カガクギジュツコウコウ"]
[null,33,"ガ","学園東町小学校",8,16,280,224,149.33333333333334,null,null,"ガクエンヒガシマチショウガッコウ"]
[null,34,"カ","加古川小学校",27,54,945,756,504,null,null,{"$f":"PHONETIC(D45)","v":"カコガワショウガッコウ"}]
[null,35,"カ","加古川野口北小学校",26,52,910,728,485.33333333333337,null,null,"カコガワノグチキタショウガッコウ"]
[null,36,"カ","加古川野口小学校",13,26,455,364,242.66666666666669,null,null,"カコガワノグチショウガッコウ"]
[null,37,"カ","河西市善防グリーンパーク",35,70,1225,980,653.33333333333337,null,null,"カサイシゼンボウグリーンパーク"]
[null,38,"カ","春日台小学校",15,30,525,420,280,null,null,"カスガダイショウガッコウ"]
[null,39,{"$f":"MID(L50,1,1)","v":"カ"},"霞ヶ丘小学校",0,{"$f":"E50*2","v":0},0,0,0,null,null,"カスミガオカショウガッコウ"]
[null,40,"カ","神の谷小学校",11,22,385,308,205.33333333333331,null,null,"カミノタニショウガッコウ"]
[null,41,"カ","狩場台小学校",13,26,455,364,242.66666666666669,null,null,"カリバダイショウガッコウ"]
[null,42,"カ","看護大学グランド",8,16,280,224,149.33333333333334,null,null,"カンゴダイガクグランド"]
[null,43,"カ","神出公園グランド",20,40,700,560,373.33333333333331,null,null,"カンデコウエングランド"]
[null,44,"キ","北神戸田園グランド",40,80,1400,1120,746.66666666666663,null,null,"キタコウベデンエングランド"]
[null,45,"キ","木津小学校",18,36,630,504,336,null,null,"キヅショウガッコウ"]
[null,46,"ケ","KFP岩岡グランド",20,40,700,560,373.33333333333331,null,null,"KFPイワオカグランド"]
[null,47,"コ","糀台小学校",15,30,525,420,280,null,null,"コウジダイショウガッコウ"]
[null,48,"コ","神戸市立森林植物園",25,50,875,700,466.66666666666669,null,null,"コウベシリツシンリンショクブツエン"]
[null,49,"コ","神戸フットボールパーク岩岡",20,40,700,560,373.33333333333331,null,null,"コウベフットボールパークイワオカ"]
[null,50,"コ","神戸製鋼高砂グランド",34,68,1190,952,634.66666666666663,null,null,"コウベセイコウタカサゴグランド"]
[null,51,"コ","向洋小学校",29,58,1015,812,541.33333333333337,null,null,"コウヨウショウガッコウ"]
[null,52,"コ","小束山小学校",6,12,210,168,112,null,null,"コヅカヤマショウガッコウ"]
[null,53,"コ","小寺小学校",8,16,280,224,149.33333333333334,null,null,"コデラショウガッコウ"]
[null,54,"コ","駒ヶ谷公園グランド",50,100,1750,1400,933.33333333333337,null,null,"コマガヤコウエングランド"]
[null,55,"サ","サンブロススポーツフィールド新宮",94,188,3290,2632,1754.6666666666667,null,null,"サンブロススポーツフィールドシングウ"]
[null,56,"サ","佐用中学校",95,190,3325,2660,1773.3333333333333,null,null,"サヨウチュウガッコウ"]
[null,57,"サ","三樹平田小学校",26,52,910,728,485.33333333333337,null,null,"サンジュヒラタショウガッコウ"]
[null,58,"サ","サンスポーツランド稲美",24,48,840,672,448,null,null,"サンスポーツランドイナミ"]
[null,59,"サ","三田・城山公園グランド",47,94,1645,1316,877.33333333333337,null,null,"サンダ・シロヤマコウエングランド"]
[null,60,{"$f":"MID(L71,1,1)","v":"サ"},"三田テクノパーク",51,{"$f":"E71*2","v":102},1785,1428,952,null,null,"サンダテクノパーク"]
[null,61,"サ","三田・平谷グランド",49,98,1715,1372,914.66666666666663,null,null,"サンダ・ヒラタニグランド"]
[null,62,"サ","三田市立富士小学校",31,62,1085,868,578.66666666666674,null,null,"サンダシリツフジショウガッコウ"]
[null,63,"サ","三段池公園",110,220,3850,3080,2053.333333333333,null,null,"サンダンイケコウエン"]
[null,64,"シ","しあわせの村",14,28,490,392,261.33333333333331,null,null,"シアワセノムラ"]
[null,65,"シ","塩屋北小学校",8,16,280,224,149.33333333333334,null,null,"シオヤキタショウガッコウ"]
[null,66,"ジ","自由が丘東小学校",21,42,735,588,392,null,null,"ジユウガオカヒガシショウガッコウ"]
[null,67,"シ","神鋼西神グランド",15,30,525,420,280,null,null,"シンコウセイシングランド"]
[null,68,"シ","新日鉄広畑グランド",48,96,1680,1344,896,null,null,"シンニッテツヒロハタグランド"]
[null,69,"ス","須磨海浜公園",11,22,385,308,205.33333333333331,null,null,"スマカイヒンコウエン"]
[null,70,"セ","西神墓園",18,36,630,504,336,null,null,"セイシンボエン"]
[null,71,"セ","瀬戸運動公園",29,58,1015,812,541.33333333333337,null,null,"セトウンドウコウエン"]
[null,72,"ソ","総合運動公園",9,18,{"$f":"$F83/$E$6*$E$3","v":315},{"$f":"$F83/$E$7*$E$3","v":252},{"$f":"$F83/$E$8*$E$3","v":168},null,null,"ソウゴウウンドウコウエン"]
[null,73,{"$f":"MID(L84,1,1)","v":"タ"},"太子町民グランド",40,80,1400,1120,746.66666666666663,null,null,{"$f":"PHONETIC(D84)","v":"タイシチョウミングランド"}]
[null,74,"ダ","だいち小学校",12,{"$f":"E85*2","v":24},420,336,224,null,null,"ダイチショウガッコウ"]
[null,75,"タ","多井畑小学校",11,22,385,308,205.33333333333331,null,null,"タイノハタショウガッコウ"]
[null,76,"タ","高倉台小学校",11,22,385,308,205.33333333333331,null,null,"タカクラダイショウガッコウ"]
[null,77,"タ","滝川第二高校",17,34,595,476,317.33333333333331,null,null,"タキガワダイニコウコウ"]
[null,78,"タ","竹の台小学校",13,26,455,364,242.66666666666669,null,null,"タケノダイショウガッコウ"]
[null,79,"タ","垂水健康公園",5,10,175,140,93.333333333333329,null,null,"タルミケンコウコウエン"]
[null,80,{"$f":"MID(L91,1,1)","v":"タ"},"垂水スポーツガーデン",5,{"$f":"E91*2","v":10},175,140,93.333333333333329,null,null,"タルミスポーツガーデン"]
[null,81,"ツ","つつじが丘小学校",6,12,210,168,112,null,null,"ツツジガオカショウガッコウ"]
[null,82,"デ","出合小学校",11,22,385,308,205.33333333333331,null,null,"デアイショウガッコウ"]
[null,83,"テ","テクノ公園グランド",54,108,1890,1512,1008,null,null,"テクノコウエングランド"]
[null,84,"ナ","長坂小学校",6,12,210,168,112,null,null,"ナガサカショウガッコウ"]
[null,85,"テ","天満南小学校",24,44,770,616,410.66666666666663,null,null,"テンマミナミショウガッコウ"]
[null,86,"ニ","西落合小学校",12,24,420,336,224,null,null,"ニシオチアイショウガッコウ"]
[null,87,"ニ","西脇小学校",4,8,140,112,74.666666666666671,null,null,"ニシワキショウガッコウ"]
[null,88,"ネ","ねぶ谷公園グランド",19,39,682.5,546,364,null,null,"ネブタニコウエングランド"]
[null,89,"ハ","八多ダンロップグランド",38,76,1330,1064,709.33333333333326,null,null,"ハタダンロップグランド"]
[null,90,"ハ","花山小学校",28,56,980,784,522.66666666666663,null,null,"ハナヤマショウガッコウ"]
[null,91,{"$f":"MID(L102,1,1)","v":"ハ"},"林崎小学校",85,{"$f":"E102*2","v":170},2975,2380,1586.6666666666667,null,null,{"$f":"PHONETIC(D102)","v":"ハヤサキショウガッコウ"}]
[null,92,"ハ","播磨光都サッカー場",83,166,2905,2324,1549.3333333333333,null,null,"ハリマコウトサッカージョウ"]
[null,93,"ハ","播磨中央公園グランド",50,100,1750,1400,933.33333333333337,null,null,"ハリマチュウオウコウエングランド"]
[null,94,"ハ","播磨南小学校",20,40,700,560,373.33333333333331,null,null,"ハリマミナミショウガッコウ"]
[null,95,"ヒ","日岡山公園グランド",30,60,1050,840,560,null,null,"ヒオカヤマコウエングランド"]
[null,96,"ヒ","東灘高校",30,60,1050,840,560,null,null,"ヒガシナダコウコウ"]
[null,97,{"$f":"MID(L108,1,1)","v":"ヒ"},"東舞子小学校",0,{"$f":"E108*2","v":0},0,0,0,null,null,"ヒガシマイコショウガッコウ"]
[null,98,{"$f":"MID(L109,1,1)","v":"ヒ"},"東舞子小学校第２グランド",0,{"$f":"E109*2","v":0},0,0,0,null,null,"ヒガシマイコショウガッコウダイ２グランド"]
[null,99,"ヒ","東町小学校",8,16,280,224,149.33333333333334,null,null,"ヒガシマチショウガッコウ"]
[null,100,"ヒ","姫路スポーツセンター（球技場）",42,84,1470,1176,784,null,null,"ヒメジスポーツセンター（キュウギジョウ）"]
[null,101,"フ","福田小学校",5,10,175,140,93.333333333333329,null,null,"フクダショウガッコウ"]
[null,102,"フ","藤江小学校",5,10,175,140,93.333333333333329,null,null,"フジエショウガッコウ"]
[null,103,"フ","ふれあいと創造の里",55,110,1925,1540,1026.6666666666665,null,null,"フレアイトソウゾウノサト"]
[null,104,"フ","フレスカ人工芝グランド",21,42,735,588,392,null,null,"フレスカジンコウシバグランド"]
[null,105,"ホ","ホームスタジアム神戸",16,32,560,448,298.66666666666669,null,null,"ホームスタジアムコウベ"]
[null,106,"ホ","北播衛生スポーツ公園",35,70,1225,980,653.33333333333337,null,null,"ホクバンエイセイスポーツコウエン"]
[null,107,"ホ","本庄小学校",29,58,1015,812,541.33333333333337,null,null,"ホンジョウショウガッコウ"]
[null,108,"ホ","本庄多目的グランド",30,60,1050,840,560,null,null,"ホンジョウタモクテキグランド"]
[null,109,"ホ","本庄中央公園",30,60,1050,840,560,null,null,"ホンジョウチュウオウコウエン"]
[null,110,{"$f":"MID(L121,1,1)","v":"ホ"},"誉田小学校",57,{"$f":"E121*2","v":114},1995,1596,1064,null,null,{"$f":"PHONETIC(D121)","v":"ホンダショウガッコウ"}]
[null,111,"ホ","本多聞小学校",4,8,140,112,74.666666666666671,null,null,"ホンタモンショウガッコウ"]
[null,112,"マ","松ヶ丘小学校",4,8,140,112,74.666666666666671,null,null,"マツガオカショウガッコウ"]
[null,113,"ミ","三木協同学苑",22,44,770,616,410.66666666666663,null,null,"ミキキョウドウガクエン"]
[null,114,"ミ","三木小学校",28,56,980,784,522.66666666666663,null,null,"ミキショウガッコウ"]
[null,115,"ミ","三木緑ヶ丘公園",22,44,770,616,410.66666666666663,null,null,"ミキミドリガオカコウエン"]
[null,116,"ミ","三木防災公園グランド",25,50,875,700,466.66666666666669,null,null,"ミキボウサイコウエングランド"]
[null,117,"ミ","三菱重工高砂グランド",35,70,1225,980,653.33333333333337,null,null,"ミツビシジュウコウタカサゴグランド"]
[null,118,"ミ","三菱和田グランド",16,32,560,448,298.66666666666669,null,null,"ミツビシワダグランド"]
[null,119,"ミ","南落合小学校",11,22,385,308,205.33333333333331,null,null,"ミナミオチアイショウガッコウ"]
[null,120,"ミ","美作総合グランド",125,250,4375,3500,2333.3333333333335,null,null,"ミマサカソウゴウグランド"]
[null,121,"ム","室谷公園グランド",8,16,280,224,149.33333333333334,null,null,"ムロタニコウエングランド"]
[null,122,"ヤ","社第３グランド",50,100,1750,1400,933.33333333333337,null,null,"ヤシロダイ３グランド"]
[null,123,"ヤ","安室小学校",65,130,2275,1820,1213.3333333333333,null,null,"ヤスムロショウガッコウ"]
[null,124,"ヤ","安室公園",50,100,1750,1400,933.33333333333337,null,null,"ヤスムロコウエン"]
[null,125,"ヤ","山手台中学校",54,110,1925,1540,1026.6666666666665,null,null,"ヤマテダイチュウガッコウ"]
[null,126,"ユ","ユニバー記念競技場",9,18,315,252,168,null,null,"ユニバーキネンキョウギジョウ"]
[null,127,"ヨ","横尾小学校",13,26,455,364,242.66666666666669,null,null,"ヨコオショウガッコウ"]
[null,128,"ヨ","吉尾公園",40,80,1400,1120,746.66666666666663,null,null,"ヨシオコウエン"]
[null,129,"ラ","ライオスドリームランド",21,42,735,588,392,null,null,"ライオスドリームランド"]
[null,130,"リ","竜が岡グランド",21,42,735,588,392,null,null,"リュウガオカグランド"]
[null,131,"リ","竜が台グランド",19,38,665,532,354.66666666666663,null,null,"リュウガダイグランド"]
[null,132,"リ","竜が台小学校",11,22,385,308,205.33333333333331,null,null,"リュウガダイショウガッコウ"]
[null,133,{"$f":"MID(L144,1,1)","v":"リ"},"緑地公園",0,{"$f":"E144*2","v":0},0,0,0,null,null,"リョクチコウエン"]
[null,134,"ロ","六甲アイランド運動公園",29,58,1015,812,541.33333333333337,null,null,"ロッコウアイランドウンドウコウエン"]
[null,135,"ロ","ロヴェストグランド",11,22,385,308,205.33333333333331,null,null,"ロヴェストグランド"]
[null,136,{"$f":"MID(L147,1,1)","v":""},null,null,0,0,0,0,null,null,""]
[null,137,null,null,null,{"$f":"E148*2","v":0},{"$f":"$F148/$E$6*$E$3","v":0},{"$f":"$F148/$E$7*$E$3","v":0},{"$f":"$F148/$E$8*$E$3","v":0},null,null,{"$f":"PHONETIC(D148)","v":""}]
[null,{"$f":"ROW()-11","v":138},null,null,null,{"$f":"E149*2","v":0},0,0,0,null,null,{"$f":"PHONETIC(D149)","v":""}]
[null,139,null,null,null,0,0,0,0,null,null,""]
[null,140,{"$f":"MID(L151,1,1)","v":""},null,null,0,0,0,0,null,null,""]
[null,141,"",null,null,0,0,0,0,null,null,""]
[null,142,"",null,null,0,0,0,0,null,null,""]

{"sheet":"継続参加大会","index":5,"n_rows":42,"n_cols":10,"rows_kept":42,"cut":false,"hidden":false,"merged":[[2,9,3,9],[0,1,0,7],[2,1,3,1],[2,2,2,6],[2,7,3,7],[2,8,3,8]]}
[null,"継続参加大会（歴代付き合いのある大会）"]
[]
[null,"月","対象学年",null,null,null,null,"大会名","主催","備考"]
[null,null,"6年","5年","4年","3年","2年"]
[null,"4月","〇","〇","〇",null,null,"修斉スプリングカップ","修斉SSS"]
[null,"4月","〇",null,null,null,null,"天王山カップ"]
[null,"5月","〇","〇","〇",null,null,"つつじヶ丘ミニサッカー大会","つつじが丘FC"]
[null,"5月",null,"〇",null,null,null,"ウッディタウンカップ","あかしあイレブン"]
[null,"5月","〇","〇",null,null,null,"長尾Wチャレンジカップ","長尾WFC"]
[null,"6月",null,"〇",null,null,null,"あかしあチャレンジカップ","あかしあイレブン"]
[null,"7月","〇","〇","〇","〇",null,"修斉カップ","修斉SSS"]
[null,"8月","〇",null,null,null,null,"加古川ロータリー杯","たんぽぽSC"]
[null,"8月","〇",null,"〇",null,null,"子午線カップ","明石FC"]
[null,"8月","〇",null,"〇",null,null,"やまて杯","やまてSC"]
[null,"8月",null,"〇",null,null,null,"あさぎり杯","佐用FC"]
[null,"8月",null,"〇",null,null,null,"美作招待サッカー大会","美作SC"]
[null,"8月","〇",null,null,null,null,"八幡市スポーツ少年団本部長杯争奪サッカー大会","八幡市スポーツ少年団本部"]
[null,"8月","〇",null,null,null,null,"MHIカップ","三菱重工他"]
[null,"8月","〇","〇","〇",null,null,"西区長杯","西区役所・少年委員会"]
[null,"8月",null,"〇",null,null,null,"安室サマーカップ","安室SC"]
[null,"9月"]
[null,"10月","〇",null,"〇",null,null,"蹴球カップ","小宅SC"]
[null,"10月",null,null,null,null,"〇","緑地公園秋のスポーツ大会","緑地公園管理部"]
[null,"10月",null,"〇",null,null,null,"ウッディタウンオータムカップ","あかしあイレブン"]
[null,"11月",null,null,null,"〇",null,"ランバードカップ","ルゼルやわたSC"]
[null,"11月","〇","〇","〇","〇",null,"ブリッジカップ","有瀬SC"]
[null,"11月","〇",null,"〇",null,null,"CSC杯","千代が丘SC"]
[null,"11月",null,null,"〇",null,"〇","長尾Wチャレンジカップ","長尾WFC"]
[null,"11月",null,"〇",null,null,null,"SERIOカップ","M.SERIO　FC"]
[null,"12月",null,"〇",null,null,null,"コカダン少年サッカー大会","佐用FC"]
[null,"12月",null,"〇",null,null,null,"弥生カップ","弥生FC"]
[null,"12月",null,"〇",null,null,null,"コスモカップ？","神戸コスモFC？"]
[null,"12月",null,null,"〇",null,"〇","CSC杯","千代が丘SC"]
[null,"12月",null,"〇",null,null,null,"FCウイングスウインターカップ","FCウイングス"]
[null,"1月","〇",null,null,null,null,"コープ杯","センアーノ神戸"]
[null,"1月",null,null,null,"〇",null,"三樹フレンドリーカップ","三樹平田SC"]
[null,"2月","〇",null,null,null,null,"蹴球カップ","小宅SC"]
[null,"2月","〇",null,null,null,null,"御影工業OBカップ","御影工業OB"]
[null,"2月",null,"〇",null,null,"〇","CSC杯","千代が丘SC"]
[null,"3月","〇",null,null,null,null,"中城カップ","本庄FC"]
[null,"3月",null,null,"〇",null,null,"パールブリッジ杯","西地区少年委員"]
[null,"3月",null,"〇",null,null,null,"佐用スプリングカップ","佐用FC"]

{"sheet":"交通費精算規定","index":6,"n_rows":37,"n_cols":8,"rows_kept":37,"cut":false,"hidden":false,"merged":[[0,1,0,5],[5,3,5,5],[11,4,11,5],[14,3,14,5],[34,2,34,5]]}
[null,"交通費　精算規定"]
[null,null,null,null,null,null,"作成日：","2017-04-06"]
[null,"１．","コーチの交通費の負担について"]
[null,null,null,"　注1：「コーチの交通費」とは・・・ガソリン代・高速代・駐車場代・その他運賃（電車・バス等)"]
[]
[null,null,"(1)","チームの練習・試合等で発生する交通費"]
[null,null,null,"①","チームで個別に決めて参加した練習・試合の場合"]
[null,null,null,"・","チームで全額を負担する。"]
[]
[null,null,null,"②","団が決めた練習・試合"]
[null,null,null,null,"　注2：「団が決めた練習・試合」とは・・・通常の練習、神戸市または西地区で開催のリーグ戦・大会、長年継続参加してきた大会"]
[null,null,null,"・","団費で７割を負担する。"]
[null,null,null,null,"（但し、コーチの車が２台を超える場合は、車種Ａの２台分の費用を上限とする。）"]
[]
[null,null,"(2)","団代表としての活動で発生する交通費"]
[null,null,null,"・","団費で全額を負担する。"]
[]
[null,"２．","ガソリン代の算出について"]
[]
[null,null,"(1)","ガソリン代の算出"]
[null,null,null,"・","ガソリン代は「交通費算出表」シートにより算出する。"]
[]
[null,null,"(2)","燃費"]
[null,null,null,"①","排気量による燃費の分類"]
[null,null,null,"・","車の燃費は排気量により車種Ａ・車種Ｂの２つに分ける。"]
[null,null,null,"・","バイクの燃費は一定とする。"]
[null,null,null,null,"車種Ａ","排気量2000cc以上"]
[null,null,null,null,"車種Ｂ","排気量2000cc未満"]
[null,null,null,null,"バイク","排気量に関わらず一定とする。"]
[]
[null,null,null,"②","会場までの距離"]
[null,null,null,"・","「交通費算出表」シートによる。"]
[null,null,null,"・","「交通費算出表」に載っていない会場については、実際に走行した距離とする。"]
[]
[null,"３．","ガソリン単価の見直しについて"]
[null,null,null,"・","「交通費算出表」シートのガソリン単価は、市場価格より期毎（1期～4期）に見直す。"]
[null,null,null,"・","見直しは会計が行い、総括及び代表の承認を得る。"]

{"sheet":"コーチ昼食費","index":7,"n_rows":35,"n_cols":7,"rows_kept":35,"cut":false,"hidden":false,"merged":[[0,0,1,5]]}
["チーム　第　　期　　コーチ昼食費　　　　　　日～　　　　　　日"]
[]
["日時","コーチ","コーチ","コーチ","コーチ","コーチ","合　　計"]
[null,null,null,null,null,null,{"$f":"SUM(B4:F4)","v":0}]
[null,null,null,null,null,null,{"$f":"SUM(B5:F5)","v":0}]
[null,null,null,null,null,null,0]
[null,null,null,null,null,null,0]
[null,null,null,null,null,null,0]
[null,null,null,null,null,null,0]
[null,null,null,null,null,null,0]
[null,null,null,null,null,null,0]
[null,null,null,null,null,null,0]
[null,null,null,null,null,null,0]
[null,null,null,null,null,null,0]
[null,null,null,null,null,null,0]
[null,null,null,null,null,null,0]
[null,null,null,null,null,null,0]
[null,null,null,null,null,null,0]
[null,null,null,null,null,null,0]
[null,null,null,null,null,null,0]
[null,null,null,null,null,null,0]
[null,null,null,null,null,null,0]
[null,null,null,null,null,null,0]
[null,null,null,null,null,null,0]
[null,null,null,null,null,null,0]
[null,null,null,null,null,null,0]
[null,null,null,null,null,null,0]
[null,null,null,null,null,null,0]
[null,null,null,null,null,null,0]
[null,null,null,null,null,null,0]
[null,null,null,null,null,null,0]
[null,null,null,null,null,null,0]
[null,null,null,null,null,null,0]
[null,null,null,null,null,null,0]
["合　計",{"$f":"SUM(B4:B34)","v":0},{"$f":"SUM(C4:C34)","v":0},{"$f":"SUM(D4:D34)","v":0},{"$f":"SUM(E4:E34)","v":0},{"$f":"SUM(F4:F34)","v":0},0]